Cogmind - Beta 11.1 @@@ ROGUE MODE // 2022.07.11 @ 01:08:05 Player: Pogmind Result: Self-destructed Performance ------------- Evolutions (1) 500 Regions Visited (3) 600 Robots Destroyed (27) 135 Value Destroyed (617) 617 Prototype IDs (0) 0 Alien Tech Used (0) 0 Bonus (14) 14 TOTAL SCORE: 1866 Bonus ------- Follower Combat Kills 14 Cogmind --------- Core Integrity 349/400 Matter 254/300 Energy 100/100 System Corruption 0% Temperature Cool (22) Movement Core (300) Ox5 Location -9/Materials Parts ------- > --- POWER (1) -------- (None) > --- PROPULSION (2) --- (None) > --- UTILITY (4) ------ Hardened Light Armor Plating Hardened Light Armor Plating Hardened Light Armor Plating > --- WEAPON (2) ------- Hammer > --- INVENTORY (5) ---- Disposable Heat Sink Disposable Heat Sink Huge Storage Unit Hardened Light Armor Plating Light Assault Rifle Peak State ------------ > --- POWER ------------ Light Ion Engine > --- PROPULSION ------- Light Treads Light Treads > --- UTILITY ---------- High-capacity Storage Unit Hardened Light Armor Plating Hardened Light Armor Plating Hardened Light Armor Plating > --- WEAPON ----------- Light Assault Rifle Light Assault Rifle > --- INVENTORY -------- Disposable Heat Sink Disposable Heat Sink Disposable Heat Sink Disposable Heat Sink Small Storage Unit Huge Storage Unit Hardened Light Armor Plating Hacking Suite Light Assault Rifle Light Assault Rifle Mini Grenade Launcher Mini Grenade Launcher Hammer [Rating: 14] Favorites ----------- Power Light Ion Engine Engine Light Ion Engine Propulsion Light Treads Treads Light Treads Utility Hardened Light Armor Plating Storage High-capacity Storage Unit Protection Hardened Light Armor Plating Weapon Light Assault Rifle Ballistic Gun Light Assault Rifle Launcher Mini Grenade Launcher Impact Weapon Hammer Build | -11 -10 -10 -9 ------- Run | Scr Mat Min Mat Slots Evolved 2 | . . . 2 Power . | . . . . Propulsion . | . . . . Utility 2 | . . . 2 Weapon . | . . . . Parts Attached 19 | 6 6 4 3 Power 2 | 1 . 1 . Engine 2 | 1 . 1 . Core . | . . . . Reactor . | . . . . Propulsion 2 | 2 . . . Treads 2 | 2 . . . Leg . | . . . . Wheel . | . . . . Hover . | . . . . Flight . | . . . . Utility 6 | 1 2 1 2 Device . | . . . . Storage 2 | 1 1 . . Processor . | . . . . Hackware . | . . . . Protection 4 | . 1 1 2 Artifact . | . . . . Weapon 9 | 2 4 2 1 Energy Gun . | . . . . Energy Cannon . | . . . . Ballistic Gun 5 | 2 2 1 . Ballistic Cannon . | . . . . Launcher 3 | . 2 1 . Special Weapon . | . . . . Impact Weapon 1 | . . . 1 Slashing Weapon . | . . . . Piercing Weapon . | . . . . Special Melee Weapon . | . . . . Unidentified Prototypes . | . . . . Parts Lost 5 | . . 1 4 Power 2 | . . 1 1 Propulsion 2 | . . . 2 Utility . | . . . . Weapon 1 | . . . 1 Highest Loss Streak 2 | . . 1 2 To Critical Strikes . | . . . . Average Slot Usage (%) 98 | . 99 100 74 Engine 13 | . 14 14 9 Treads 27 | . 28 28 6 Storage 13 | . 14 14 8 Protection 14 | . 13 14 29 Ballistic Gun 27 | . 27 27 19 Naked Turns . | . . . . Heaviest Build 60 | 10 50 50 60 Greatest Support 40 | 40 40 40 40 Greatest Overweight (x) 6 | . 1 1 6 Average Overweight (x) . | . . 1 1 Largest Inventory Capacity 20 | 8 20 20 20 Average Capacity 16 | 7 12 20 16 Most Carried 15 | 1 15 15 15 Average Carried 10 | . 6 14 11 Final Capacity 20 | 8 20 20 5 Final Carried 15 | 1 15 15 5 Class Distribution -------------------- 100% | Mutant Dominant Class ---------------- Mutant | -10/Materials Mutant | -10/Mines Mutant | -9/Materials Resources | -11 -10 -10 -9 ----------- Run | Scr Mat Min Mat Matter Collected 517 | 163 249 105 . Remotely . | . . . . Salvage Created 641 | . 341 155 145 Parts 57 | . 29 10 18 Haulers Intercepted . | . . . . Recyclers Shooed 3 | . . . 3 Parts Field Recycled . | . . . . Retrieved Matter . | . . . . Parts Self-Destructed . | . . . . Prevented . | . . . . Kills | -11 -10 -10 -9 ------- Run | Scr Mat Min Mat Combat Hostiles Destroyed 21 | . 10 6 5 Melee 1 | . . . 1 Guns 13 | . 4 5 4 AOE 7 | . 6 1 . Classes Destroyed 7 | . 5 1 1 Worker 1 | . 1 . . Tunneler 1 | . . 1 . Operator 1 | . 1 . . Watcher 3 | . 3 . . Swarmer 10 | . 3 4 3 Grunt 9 | . 7 2 . Sentry 2 | . . . 2 Best Kill Streak 6 | . 6 3 3 Combat Bots Only 6 | . 6 2 3 Max Kills in Single Turn 3 | . 3 2 1 Gunslinging . | . . . . Exploded 3 | . 3 1 . Melee 1 | . . . 1 Uniques/NPCs Destroyed . | . . . . Combat | -11 -10 -10 -9 -------- Run | Scr Mat Min Mat Damage Taken 1166 | . 378 309 479 Core 194 | . 127 16 51 Absorbed by Shields . | . . . . Core Remaining (%) 71 | 100 . 42 . Volleys Fired 81 | . 43 20 18 Largest 2 | . 2 2 2 Hottest 40 | . 40 40 40 Shots Fired 157 | . 82 39 36 Gun 152 | . 78 38 36 Cannon . | . . . . Launcher 5 | . 4 1 . Special . | . . . . Kinetic 152 | . 78 38 36 Thermal . | . . . . Explosive 5 | . 4 1 . Electromagnetic . | . . . . Robot Hit Streak 9 | . 6 9 5 Robot Miss Streak 4 | . 4 1 2 Penetration Max . | . . . . Secondary Targets 2 | . . 1 1 Max Gunslinging Chain 1 | . . 1 1 Shots Hit Robots 107 | . 48 28 31 Core Hits 56 | . 30 16 10 Critical Kills 1 | . . . 1 Critical Parts Destroyed . | . . . . Critical Strikes 2 | . . . 2 Destroy 1 | . . . 1 Smash 1 | . . . 1 Melee Attacks 9 | . . . 9 Impact 9 | . . . 9 Slashing . | . . . . Piercing . | . . . . Sneak Attacks 1 | . . . 1 Combat Hostiles . | . . . . Follow-up Attacks . | . . . . Damage Inflicted 1675 | . 906 389 380 Guns 806 | . 416 209 181 Cannons . | . . . . Explosions 622 | . 482 140 . Melee 199 | . . . 199 Ramming 48 | . 8 40 . Kinetic 806 | . 416 209 181 Thermal . | . . . . Explosive 622 | . 482 140 . Electromagnetic . | . . . . Impact 199 | . . . 199 Slashing . | . . . . Piercing . | . . . . Highest Corruption . | . . . . Average Corruption . | . . . . Corruption Purged . | . . . . Corruption Blocked . | . . . . Overload Shots . | . . . . Overflow Damage 15 | . 1 10 4 Projectiles . | . . . . Explosions 10 | . . 10 . Melee 5 | . 1 . 4 Knockbacks 1 | . . . 1 Impact 1 | . . . 1 Kinetic . | . . . . Secondary . | . . . . Self-Inflicted Damage 49 | . 42 7 . Shots 2 | . 1 1 . Rammed 10 | . 2 8 . Targets Rammed 11 | . 3 8 . Kicked . | . . . . Crushed 1 | . 1 . . Highest Temperature 244 | . 76 73 244 Average Temperature 54 | . 23 28 103 Received Heat Transfer 468 | . 198 126 144 Effects 2 | . . . 2 Interference 2 | . . . 2 Siege Activations . | . . . . Robots Corrupted . | . . . . Combat Hostiles . | . . . . Parts Fried . | . . . . Impact Corruptions 2 | . 1 . 1 Robots Melted . | . . . . Combat Hostiles . | . . . . Parts Melted . | . . . . Heat Transferred . | . . . . Parts Sabotaged . | . . . . Parts Stolen . | . . . . Parts Stripped . | . . . . Power Chain Reactions . | . . . . Missiles Intercepted . | . . . . Alert | -11 -10 -10 -9 ------- Run | Scr Mat Min Mat Peak Influence 287 | . 287 112 127 Initial 7 | . . . 7 Average 58 | . 82 34 71 Maximum Alert Level 1 | . 1 . . Low Security (%) 92 | 100 85 100 100 Level 1 7 | . 14 . . Level 2 . | . . . . Level 3 . | . . . . Level 4 . | . . . . Level 5 . | . . . . High Security . | . . . . Max Security . | . . . . Squads Dispatched 1 | . 1 . . Investigation . | . . . . Extermination . | . . . . Reinforcement 1 | . 1 . . Assault . | . . . . Garrison . | . . . . Intercept . | . . . . Searches Triggered . | . . . . Construction Impeded . | . . . . Haulers Reinforced . | . . . . Active Scanning Responses . | . . . . Cargo Convoy Interrupts . | . . . . Stealth | -11 -10 -10 -9 --------- Run | Scr Mat Min Mat Distress Signals 3 | . 1 . 2 Communications Jammed . | . . . . Distress Signals . | . . . . Times Spotted 39 | . 20 10 9 Peak Tracking Total 5 | . 3 3 5 Tactical Retreats 2 | . . 1 1 Traps | -11 -10 -10 -9 ------- Run | Scr Mat Min Mat Traps Triggered . | . . . . Indirectly . | . . . . Trap Hack Attempts . | . . . . Triggered . | . . . . Disarmed . | . . . . Reprogrammed . | . . . . Reused . | . . . . Traps Extracted . | . . . . Installed . | . . . . Triggered . | . . . . Machines | -11 -10 -10 -9 ---------- Run | Scr Mat Min Mat Machines Disabled 1 | . 1 . . Max in Single Turn 1 | . 1 . . Machines Sabotaged . | . . . . Garrisons Compromised . | . . . . Overloaded Fab Kills . | . . . . Hacking | -11 -10 -10 -9 --------- Run | Scr Mat Min Mat Machines Accessed 7 | . 7 . . Terminals 6 | . 6 . . Fabricators . | . . . . Repair Stations . | . . . . Recycling Units 1 | . 1 . . Scanalyzers . | . . . . Garrison Access . | . . . . Total Hacks 18 | . 18 . . Successful 6 | . 6 . . Failed 11 | . 11 . . Catastrophic . | . . . . Database Lockouts 1 | . 1 . . Manual 15 | . 15 . . Terminals 17 | . 17 . . Fabricators . | . . . . Repair Stations . | . . . . Recycling Units 1 | . 1 . . Scanalyzers . | . . . . Garrison Access . | . . . . Terminal Hacks 3 | . 3 . . Robot Analysis 1 | . 1 . . Locate Traps 1 | . 1 . . Hauler Manifests 1 | . 1 . . Fabricator Hacks . | . . . . Repair Station Hacks . | . . . . Recycling Unit Hacks . | . . . . Scanalyzer . | . . . . Garrison Access Hacks . | . . . . Unauthorized Hacks 3 | . 3 . . Terminals 2 | . 2 . . Botnet 2 | . 2 . . Fabricators . | . . . . Repair Stations . | . . . . Recycling Units 1 | . 1 . . Mask 1 | . 1 . . Scanalyzers . | . . . . Garrison Access . | . . . . Data Cores Recovered . | . . . . Used . | . . . . Hacking Detections 6 | . 6 . . Full Trace Events . | . . . . Feedback Events . | . . . . Feedback Blocked . | . . . . Robot Schematics Acquired . | . . . . Robots Built . | . . . . Authchips . | . . . . Time . | . . . . Total Robot Build Rating . | . . . . Part Schematics Acquired . | . . . . Parts Built . | . . . . Authchips . | . . . . Time . | . . . . Total Part Build Rating . | . . . . Parts Repaired . | . . . . Time . | . . . . Parts Recycled . | . . . . Recycled Matter . | . . . . Retrieved Matter . | . . . . Retrieved Components . | . . . . Parts Scanalyzed . | . . . . Part Schematics Acquired . | . . . . Parts Damaged . | . . . . Bothacking | -11 -10 -10 -9 ------------ Run | Scr Mat Min Mat Used RIF Installer . | . . . . Robots Hacked . | . . . . Non-combat . | . . . . Combat . | . . . . Robot Hacks Applied . | . . . . Relay Couplers Released . | . . . . Fabnet Peak Effective % . | . . . . Robots Rewired . | . . . . Allies Hacked . | . . . . Hacks Repelled . | . . . . Allies | -11 -10 -10 -9 -------- Run | Scr Mat Min Mat Total Allies 2 | . . 2 . Largest Group 2 | . . 2 . Highest-Rated Group 41 | . . 41 . Highest-Rated Ally 31 | . . 31 . Total Orders . | . . . . Ally Attacks 7 | . . 7 . Total Damage 105 | . . 105 . Kills 2 | . . 2 . Allies Corrupted . | . . . . Allies Melted . | . . . . Intel | -11 -10 -10 -9 ------- Run | Scr Mat Min Mat Robot Analysis Total 1 | . 1 . . Derelict Logs Recovered 1 | . . 1 . Drone Launches . | . . . . Drone Recoveries . | . . . . Exploration | -11 -10 -10 -9 ------------- Run | Scr Mat Min Mat Turns Passed 3416 | 73 1700 1520 123 Spaces Moved 1320 | 43 670 594 13 Core 5 | 4 . . 1 Treads 1315 | 39 670 594 12 Legs . | . . . . Wheels . | . . . . Hover . | . . . . Flight . | . . . . Fastest Speed 50 | 50 160 240 240 Average Speed 212 | 149 191 240 279 Slowest Speed 350 | 160 240 240 350 Overloaded Moves . | . . . . Propulsion Burnouts . | . . . . Robots Hopped . | . . . . Cave-ins Triggered . | . . . . Exploration Rate (%) 46 | 4 81 99 3 Regions Visited 3 Branch Regions 1 Pre-discovered Areas 1 | . . 1 . Known Exits Taken . | . . . . Unknown Exits Taken 3 | 1 1 1 . Scrap Searched 3 | . . 3 . Spaces Dug 12 | . . 12 . Terrain Destroyed 35 | . 23 12 . Melee . | . . . . Projectile . | . . . . AOE 35 | . 23 12 . Terrain Rammed . | . . . . Walls Destroyed . | . . . . Machines Disabled . | . . . . Actions | -11 -10 -10 -9 --------- Run | Scr Mat Min Mat Total 1766 | 49 1017 645 55 Wait 312 | . 283 19 10 Move 1317 | 42 669 593 13 Hop . | . . . . Pick Up 15 | 1 13 1 . Fast Attach 7 | 6 1 . . Attach 3 | . . 1 2 Detach . | . . . . Swap 9 | . 5 3 1 Drop 2 | . . . 2 Fire 81 | . 43 20 18 Melee 9 | . . . 9 Ram . | . . . . Kick . | . . . . Crush 11 | . 3 8 . Escape Stasis . | . . . . Rewire . | . . . . Trap . | . . . . Miscellaneous . | . . . . Route ------- -11/Scrapyard -10/Materials (discovered 3 exits: [*Mat] / [*Min x2]) -10/Mines (discovered 2 exits: [*Mat x2]) -9/Materials History --------- Turn | Location | Event 8 | -11/Scrapyard | Discovered new exit (range 16) 74 | -11/Scrapyard | Entered Materials 307 | -10/Materials | Build established: Mutant 307 | -10/Materials | Discovered new exit (range 5) 991 | -10/Materials | Discovered new exit (range 8) 1039 | -10/Materials | Central database locked down 1055 | -10/Materials | Core integrity fell below 50% 1059 | -10/Materials | Discovered new exit (range 16) 1774 | -10/Materials | Entered Mines 2221 | -10/Mines | Discovered new exit (range 15) 2383 | -10/Mines | Discovered new exit (range 5) 2387 | -10/Mines | Learned location of Storage (-9) 2578 | -10/Mines | Learned Materials non-interactive machine intel 3294 | -10/Mines | Entered Materials 3294 | -9/Materials | Evolved 2 slots: Utility x2 3295 | -9/Materials | Loaded intel: 38 non-interactive machine locations 3417 | -9/Materials | Self-destructed Last Messages --------------- 03387_ R-06 Scavenger collects Hvy. Assault Rifle. 03390_ R-06 Scavenger collects Lgt. Treads. 03391_ Critical hit (Burn: +37). 03394_ R-06 Scavenger collects Imp. Ion Engine. 03395_ R-06 Scavenger collects Lgt. Armor Plating. 03397_ Lgt. Ion Engine destroyed. 03402_ R-06 Scavenger collects Hacking Suite. 03403_ Lgt. Assault Rifle destroyed. 03405_ R-06 Scavenger collects Mni. Grenade Launcher. 03406_ Destroyed Heat Sink. 03406_ Y-45 Defender system corrupted by crushing effect. 03406_ Y-45 Defender IFF system glitched. 03406_ Critical hit (Burn: +37). 03409_ Y-45 Defender suffers critical hit (Smash). 03409_ R-06 Scavenger collects Mni. Grenade Launcher. 03410_ W-16 Scout sends out distress signal. 03411_ Y-45 Defender destroyed. 03412_ R-06 Scavenger collects Disposable Heat Sink. 03414_ Sneak attack on R-06 Scavenger. 03414_ R-06 Scavenger knocked back. Map ----- +----------------------------------------------------+ | ?????????????????????????????????????????????????? | | ?????????????????????????????????????????????????? | | ?????????????????????????????????????????????????? | | ?????????????????????????????????????????????????? | | ?????????????????????????????????????????????????? | | ?????????????????????????????????????????????????? | | ?????????????????????????????????????????????????? | | ?????????????????????????????????????????????????? | | ?????????????????????????????????????????????????? | | ?????????????????????????????????????????????????? | | ??????????????????????#####????????????"""?"""???? | | ??????????????????????# #????????????"""?"""???? | | ??????????????????????# #????????????"""?"""???? | | ??????????????????????# #??????????????????????? | | ???""""???????????????# #??????????????????????? | | ???""""???????????????# #??????????????????????? | | ???""""???????????????# #?"""??????"""?"""?????? | | ??????????????????????# #?"""??????"""?"""?????? | | ??????????????????????# #?"""??????"""?"""?????? | | ??????????????????????# #??????????????????????? | | ??????????????????????# #??????????????????????? | | ??????????????????????# #??????????????????????? | | ??????????????????????# [#??????????????????????? | | ??????????????????????#[![### =%= [%*??????????? | | ??????????????????????# !s%% T =???????????? | | ??????????????????????# [@### ??????????? | | ??????????????????????# r #???? #??????????????? | | ??????????????????????# #???????#??????????????? | | ??????????????????????# #??????????????????????? | | ??????????????????????# u#??????????????????????? | | ??????????????????????# #???????????????"""????" | | ??????????????????????# #???????????????"""????" | | ?????????????????????? ???????????????"""????" | | ?????????????????????? ??????????????????????" | | ????????????????????? % ??????????????????????? | | ?????????????????????w ??????????????????????? | | ?????????????????????# ??????????????????????? | | ?????????????????????###s###?????????????????????? | | ???????????????????????? ????????????????????????? | | ??????????????????????"""????????????????????????? | | ??????????????????????"""????????????????????????? | | ??????????????????????"""????????????????????????? | | ???????????????????????????????????"""???????????? | | ???????????????????????????????????"""???????????? | | ""?????????????????????????????????"""???????????? | | ""???????????????????????????????????????????????? | | ""???????????????????????????????????????????????? | | ?????????????????????????????????????????????????? | | ?????????????????????????????????????????????????? | | ?????????????????????????????????????????????????? | +----------------------------------------------------+ Best States ------------- Heat Dissipation 28 Energy Generation 10 Energy Capacity 125 Matter Stores 300 Matter Capacity 300 Sight Range 16 Terrain Scan Density 10 Armor Coverage 450 Evasion (%) 40 Recoil Reduction 2 Item Schematics ----------------- None Robot Schematics ------------------ None Fabricated ------------ Nothing Alien Tech Used ----------------- None Achievements -------------- None Challenges ------------ None Game ------ Seed WeightEtherialKatana Manual? 1 Play Time 00:14:23 Cumulative 520.9 hours Start 2022.07.11 @ 00:55:37 End 2022.07.11 @ 01:08:05 Sessions 1 Manual Loads 0 Difficulty Rogue Special Mode None Game No. 49 Rogue 44 Adventurer 5 Explorer 0 Win Type - Total 22 Types 6/4/4/0/3/1/3/0/1 Lore% 84 Gallery% 92 Achievement% 82 Wizard Run 0 Options --------- ASCII 0 Keyboard 1 Movement Arrows Keybinds 0 Fullscreen 2 Font 18/SmallcapsGlow Map View 76x50 Tactical HUD 1 Map Filters NONE Filters NONE Steam 1 RUN: fe6a97ce-d5e9-487e-91c0-00200d7fd555